bitfinex/quotes_SOLUSD_20241020
["timestamp","ask_amount","ask_price","bid_price","bid_amount"]
[1729461046107,6.126,163.24,163.2,6.1274]
[1729461046304,21.5696,163.26,163.21,6.1267]
[1729461046305,27.695,163.26,163.21,6.1267]
[1729461046508,27.695,163.26,163.16,0.1]
[1729461046509,21.672,163.26,163.17,10.545]
[1729461046724,6.1249,163.27,163.22,6.1266]
[1729461047699,6.1249,163.27,163.21,15.3168]
[1729461047700,6.1249,163.27,163.23,6.1262]
[1729461048622,6.1244,163.28,163.23,6.1262]
[1729461053027,6.1244,163.28,163.24,6.1259]
[1729461059439,28.94585023,163.3,163.24,6.1259]
[1729461059620,6.1241,163.29,163.24,6.1259]
[1729461060930,6.1241,163.29,163.19,0.1]
[1729461061123,22.5726,163.3,163.19,0.1]
[1729461061319,22.5726,163.3,163.24,6.1258]
[1729461061320,14.2502149,163.29,163.24,6.1258]
[1729461062117,14.2502149,163.29,163.19,0.1]
[1729461062322,14.2502149,163.29,163.25,6.1254]
[1729461063341,6.124,163.29,163.25,6.1254]
[1729461064133,16.2895,163.3,163.25,6.1254]
[1729461064435,22.4132,163.3,163.25,6.1254]
[1729461064638,22.4132,163.3,163.2,30.7372]
[1729461064639,22.4132,163.3,163.2,0.1]
[1729461064846,22.4132,163.3,163.22,23.776884]
[1729461065037,22.4132,163.3,163.25,6.1253]
[1729461065352,16.2895,163.3,163.26,6.1251]
[1729461066146,12.3494,163.33,163.27,6.1245]
[1729461066344,12.3494,163.33,163.25,23.776884]
[1729461066550,12.3494,163.33,163.27,6.1244]
[1729461067046,6.123,163.32,163.28,6.1243]
[1729461072052,16.5546,163.34,163.28,6.1243]
[1729461072345,6.1226,163.33,163.28,6.1243]
[1729461074441,6.1226,163.33,163.25,23.776884]
[1729461074653,6.1226,163.33,163.29,6.1239]
[1729461075041,6.1226,163.33,163.25,23.776884]
[1729461075042,16.5546,163.34,163.25,0.1]
[1729461075342,1.5,163.34,163.31,6.1233]
[1729461076459,1.5,163.34,163.31,6.1229]
[1729461077763,1.5,163.34,163.32,6.1228]
[1729461080343,1.5,163.34,163.31,15.3082]
[1729461080641,1.5,163.34,163.31,21.4314]
[1729461080954,1.5,163.34,163.31,20.9314]
[1729461081258,1.5,163.34,163.31,6.1232]
[1729461082435,1.5,163.34,163.28,23.776884]
[1729461082436,1.5,163.34,163.29,6.124]
[1729461082661,1.5,163.34,163.28,23.776884]
[1729461084349,1.5,163.34,163.31,21.4313]
[1729461086134,1.5,163.34,163.31,6.1232]
[1729461086747,1.5,163.34,163.31,6.1233]
[1729461088245,1.5,163.34,163.27,20.0]
[1729461088560,1.5,163.34,163.31,6.123]
[1729461091665,1.5,163.34,163.32,6.1228]
[1729461097074,1.5,163.34,163.31,21.4312]
[1729461097271,1.5,163.34,163.31,15.3082]
[1729461099270,1.5,163.34,163.3,6.1235]
[1729461099870,1.5,163.34,163.23,30.6316]
[1729461100180,16.216,163.28,163.15,0.1]
[1729461100393,16.216,163.28,163.17,6.5146]
[1729461100556,6.1255,163.26,163.17,21.836]
[1729461100761,7.17205805,163.27,163.17,15.3214]
[1729461100762,6.1258,163.25,163.17,15.3214]
[1729461101582,6.0109,163.24,163.17,15.3214]
[1729461103671,15.9555,163.23,163.13,6.1297]
[1729461103859,43.776884,163.22,163.11,6.1305]
[1729461104169,6.128,163.19,163.1,6.1311]
[1729461104373,6.1281,163.19,163.1,6.1311]
[1729461105679,6.1284,163.18,163.1,6.1311]
[1729461107467,6.1284,163.18,163.04,16.7804]
[1729461107468,6.1284,163.18,163.11,6.1307]
[1729461117497,6.1284,163.18,163.12,6.1304]
[1729461119590,6.127,163.21,163.14,6.1295]
[1729461121171,6.1283,163.18,163.13,15.3248]
[1729461121364,6.1278,163.2,163.13,15.3248]
[1729461121565,6.1278,163.2,163.14,6.1295]
[1729461122694,6.4474,163.2,163.13,21.4548]
[1729461122877,15.7496,163.18,163.11,6.1305]
[1729461123189,6.1289,163.17,163.11,6.1308]
[1729461135488,15.7496,163.18,163.05,30.6654]
[1729461135700,6.1291,163.16,163.1,6.1311]
[1729461138407,15.7496,163.18,163.09,15.3289]
[1729461138611,6.13,163.14,163.09,15.3289]
[1729461143402,27.6679,163.13,163.07,6.1323]
[1729461143616,6.1306,163.12,163.07,6.1323]
[1729461145111,6.1306,163.12,163.06,15.3316]
[1729461145112,6.1312,163.1,163.06,15.3316]
[1729461145406,23.776884,163.12,163.02,21.4692]
[1729461145609,23.776884,163.12,163.03,6.1338]
[1729461145610,6.1315,163.09,163.03,6.1338]
[1729461148187,22.4545,163.08,163.02,21.4694]
[1729461149192,28.5864,163.08,163.02,21.4695]
[1729461153023,6.1325,163.07,163.02,15.3354]
[1729461153399,28.5867,163.08,163.02,21.4696]
[1729461154987,22.4545,163.08,163.02,15.3354]
[1729461155212,28.5864,163.08,163.02,15.3354]
[1729461155712,28.5865,163.08,163.02,15.3354]
[1729461156211,6.1328,163.06,163.0,6.1348]
[1729461156416,6.1323,163.07,163.01,6.1345]
[1729461158318,23.776884,163.07,162.99,15.3375]
[1729461159520,6.1329,163.06,163.01,6.1344]
[1729461161018,6.1335,163.04,162.97,15.3401]
[1729461161324,6.133,163.06,163.0,6.1348]
[1729461162121,22.4545,163.08,163.0,6.1348]
[1729461162301,6.1333,163.05,163.0,6.1348]
[1729461163419,6.1327,163.06,163.0,6.1348]
[1729461163797,6.133,163.05,162.99,6.1353]
[1729461164118,6.1336,163.04,162.99,6.1353]
[1729461164416,28.83210453,163.08,162.95,30.6842]
[1729461164618,28.83210453,163.08,163.02,6.1341]
[1729461164619,22.4545,163.08,163.02,6.1341]
[1729461164797,6.1326,163.07,163.02,6.1341]
[1729461165715,6.1326,163.07,163.01,6.1345]
[1729461166020,22.4545,163.08,163.0,15.3367]
[1729461166407,6.1326,163.07,163.01,6.1345]
[1729461167220,6.1323,163.07,163.01,6.1345]
[1729461168316,28.5865,163.08,163.03,6.1336]
[1729461169700,28.5865,163.08,163.03,6.1337]
[1729461169701,28.5864,163.08,163.03,6.1337]
[1729461171198,22.4545,163.08,162.96,23.876884]
[1729461171413,28.5865,163.08,163.03,6.1336]
[1729461171722,6.1315,163.1,163.05,6.1328]
[1729461172128,22.434,163.12,162.98,0.1]
[1729461172129,28.5648,163.12,163.06,6.1323]
[1729461172421,6.1312,163.1,163.05,6.133]
[1729461172628,6.1312,163.1,163.05,6.1327]
[1729461172929,28.5648,163.12,163.07,6.1321]
[1729461173132,22.434,163.12,163.02,15.3355]
[1729461173298,6.1308,163.11,163.05,6.1328]
[1729461173816,28.5645,163.12,163.07,6.132]
[1729461175602,22.3766,163.12,163.07,6.132]
[1729461186037,6.3749186,163.16,163.13,6.1299]
[1729461186228,6.1283,163.18,163.12,6.1301]
[1729461186534,15.3801,163.2,163.06,20.1]
[1729461186837,15.3801,163.2,163.1,21.458]
[1729461186838,6.1286,163.17,163.1,21.458]
[1729461187020,15.3801,163.2,163.13,6.13]
[1729461187021,6.1281,163.19,163.13,6.13]
[1729461187423,15.3801,163.2,163.13,6.13]
[1729461187922,21.5075,163.2,163.13,6.13]
[1729461190027,15.3801,163.2,163.11,10.545]
[1729461190244,22.3945,163.24,163.17,6.1282]
[1729461190434,16.2686,163.24,163.18,6.1278]
[1729461190741,16.2686,163.24,163.18,6.128]
[1729461191839,22.3945,163.24,163.18,6.128]
[1729461192720,16.2686,163.24,163.12,23.776884]
[1729461192921,22.3945,163.24,163.17,6.1283]
[1729461193135,6.1264,163.23,163.17,6.1283]
[1729461194640,16.2686,163.24,163.16,15.322]
[1729461194945,16.2686,163.24,163.18,6.1281]
[1729461196034,16.2686,163.24,163.19,6.1277]
[1729461196222,16.2686,163.24,163.14,0.1]
[1729461196418,16.2686,163.24,163.19,6.1274]
[1729461196618,6.5306,163.25,163.14,20.1]
[1729461196619,6.5306,163.25,163.16,20.0]
[1729461196943,15.7338,163.28,163.16,20.0]
[1729461196944,6.1248,163.27,163.21,6.1269]
[1729461198734,15.7338,163.28,163.19,20.0]
[1729461198934,6.1242,163.29,163.2,21.446]
[1729461199136,6.1242,163.29,163.19,20.0]
[1729461199642,15.7338,163.32,163.19,20.0]
[1729461199925,15.7338,163.32,163.23,10.545]
[1729461200131,1.5,163.34,163.3,6.1236]
[1729461200560,1.5,163.34,163.31,8.77111473]
[1729461200861,1.5,163.34,163.29,6.1239]
[1729461203336,1.5,163.34,163.28,15.3108]
[1729461203337,6.1226,163.33,163.28,15.3108]
[1729461205469,1.5,163.34,163.28,15.3108]
[1729461205965,7.6222,163.34,163.28,15.3108]
[1729461206161,6.1225,163.33,163.26,6.1251]
[1729461206339,6.1225,163.33,163.27,6.1247]
[1729461206761,6.1229,163.32,163.25,15.3139]
[1729461208450,6.1229,163.32,163.26,6.1251]
[1729461208837,1.5,163.34,163.25,15.3139]
[1729461209033,6.1235,163.31,163.25,15.3139]
[1729461209464,6.1229,163.33,163.25,21.4394]
[1729461209655,1.5,163.34,163.25,21.4394]
[1729461209856,6.1233,163.31,163.25,21.4394]
[1729461213345,6.1241,163.29,163.21,15.3171]
[1729461213552,6.1241,163.29,163.22,26.1263]
[1729461214167,6.1241,163.29,163.22,20.0]
[1729461214351,6.1241,163.29,163.23,6.1263]
[1729461215161,12.2905,163.31,163.24,6.1255]
[1729461215470,12.2905,163.31,163.25,6.1252]
[1729461215669,12.2905,163.31,163.26,6.1251]
[1729461216054,6.1669,163.31,163.24,15.314]
[1729461216248,6.1238,163.3,163.25,6.1255]
[1729461217154,6.1669,163.31,163.25,6.1255]
[1729461217354,6.1669,163.31,163.26,6.1248]
[1729461217754,15.0671,163.3,163.23,15.3158]
[1729461218071,21.1908,163.3,163.23,15.3158]
[1729461219362,21.1908,163.3,163.24,6.1257]
[1729461219558,21.1908,163.3,163.24,15.3147]
[1729461219856,21.1908,163.3,163.24,21.4403]
[1729461220062,6.1225,163.33,163.2,0.1]
[1729461220377,1.5,163.34,163.23,43.776884]
[1729461220578,7.6223,163.34,163.28,6.1243]
[1729461221154,7.6223,163.34,163.23,43.776884]
[1729461221155,6.1231,163.32,163.26,6.1251]
[1729461221662,6.1238,163.3,163.25,15.3138]
[1729461221849,6.1229,163.32,163.25,15.3138]
[1729461222053,23.776884,163.33,163.25,15.3138]
[1729461222054,6.124,163.3,163.25,15.3138]
[1729461222984,6.1242,163.29,163.24,6.1259]
[1729461223452,23.776884,163.33,163.22,10.545]
[1729461223649,6.1236,163.31,163.24,15.3147]
[1729461224275,6.1238,163.3,163.25,6.1255]
[1729461224575,6.1225,163.33,163.26,6.1251]
[1729461224781,6.1233,163.31,163.26,6.1251]
[1729461225361,21.1574,163.3,163.25,15.3137]
[1729461226052,21.1574,163.3,163.25,21.4391]
[1729461228157,15.0336,163.3,163.26,6.125]
[1729461229267,17.5466,163.34,163.21,0.1]
[1729461229455,6.1233,163.31,163.26,6.125]
[1729461230355,17.5466,163.34,163.22,23.776884]
[1729461230356,0.66797647,163.33,163.22,23.776884]
[1729461230561,0.66797647,163.33,163.28,6.1242]
[1729461230877,0.66797647,163.33,163.27,15.3117]
[1729461231068,0.66797647,163.33,163.29,6.1239]
[1729461231385,6.79077647,163.33,163.27,6.1245]
[1729461231884,6.123,163.32,163.27,6.1245]
[1729461235974,6.79057647,163.33,163.28,6.1243]
[1729461236263,6.1229,163.32,163.27,15.3119]
[1729461236887,6.1229,163.32,163.27,21.4366]
[1729461238971,0.66797647,163.33,163.21,20.0]
[1729461239282,6.124,163.3,163.25,6.1254]
[1729461239684,6.79057647,163.33,163.28,6.1243]
[1729461239988,6.1233,163.31,163.27,15.3119]
[1729461240688,6.1241,163.29,163.24,6.1257]
[1729461244673,6.1236,163.31,163.25,6.1252]
[1729461245381,6.1229,163.32,163.22,30.6335]
[1729461245580,6.1229,163.32,163.27,6.1247]
[1729461246471,6.1236,163.31,163.26,15.3128]
[1729461246671,6.1236,163.31,163.26,21.4379]
[1729461248792,0.66797647,163.33,163.26,15.3128]
[1729461248979,6.1233,163.32,163.27,6.1247]
[1729461249885,0.66797647,163.33,163.26,15.3128]
[1729461250096,6.1236,163.31,163.26,15.3128]
[1729461250294,6.1237,163.3,163.26,15.3128]
[1729461251170,6.1229,163.32,163.26,15.3128]
[1729461251389,6.1233,163.31,163.26,21.4379]
[1729461252380,6.1229,163.32,163.26,21.4379]
[1729461252992,0.66797647,163.33,163.21,20.1]
[1729461253200,0.66797647,163.33,163.23,20.0]
[1729461254373,0.66797647,163.33,163.29,6.1239]
[1729461255079,0.66797647,163.33,163.23,20.2]
[1729461255400,0.66797647,163.33,163.31,6.1233]
[1729461261193,0.66797647,163.33,163.31,6.123]
[1729461261405,0.66797647,163.33,163.32,6.1229]
[1729461263213,0.66797647,163.33,163.31,21.4312]
[1729461263878,0.66797647,163.33,163.31,15.308]
[1729461266806,1.5,163.34,163.31,15.308]
[1729461267015,1.5,163.34,163.32,6.1225]
[1729461267305,1.5,163.34,163.31,21.431]
[1729461268910,1.5,163.34,163.32,6.1229]
[1729461269115,1.5,163.34,163.32,6.1226]
[1729461270807,1.5,163.34,163.33,6.1225]
[1729461280512,1.5,163.34,163.32,15.3069]
[1729461283002,7.6223,163.34,163.29,6.1239]
[1729461283698,7.6223,163.34,163.3,6.1235]
[1729461283907,1.5,163.34,163.3,6.1235]
[1729461284623,1.5,163.34,163.26,20.0]
[1729461284824,1.5,163.34,163.31,6.1232]
[1729461285320,1.5,163.34,163.29,15.3092]
[1729461285622,1.5,163.34,163.3,6.1234]
[1729461286510,1.5,163.34,163.31,6.1233]
[1729461287915,1.5,163.34,163.3,15.309]
[1729461288798,1.5,163.34,163.3,21.4326]
[1729461289400,1.5,163.34,163.3,15.309]
[1729461289812,1.5,163.34,163.24,30.6297]
[1729461290020,6.1226,163.33,163.27,6.1247]
[1729461293302,7.6222,163.34,163.28,6.1241]
[1729461295322,7.6222,163.34,163.24,30.6297]
[1729461295619,7.6222,163.34,163.29,6.1239]
[1729461298199,1.5,163.34,163.24,30.6297]
[1729461298499,1.5,163.34,163.3,6.1235]
[1729461300197,1.5,163.34,163.27,20.0]
[1729461300498,1.5,163.34,163.31,6.1232]
[1729461302213,1.5,163.34,163.31,6.123]
[1729461306345,1.5,163.34,163.32,6.1229]
[1729461307215,1.5,163.34,163.31,21.4314]
[1729461316736,7.6224,163.34,163.28,15.3107]
[1729461317641,1.5,163.34,163.26,10.545]
[1729461317944,1.5,163.34,163.3,6.1234]
[1729461322438,1.5,163.34,163.26,10.545]
[1729461322645,1.5,163.34,163.31,6.1232]
[1729461327021,1.5,163.34,163.26,10.545]
[1729461327228,1.5,163.34,163.3,6.1234]
[1729461327941,1.5,163.34,163.33,6.1225]
[1729461328247,1.5,163.34,163.31,6.123]
[1729461333845,4.58405849,163.33,163.31,6.123]
[1729461334027,1.5,163.34,163.31,6.123]
[1729461334226,4.58421432,163.33,163.31,6.123]
[1729461334427,1.5,163.34,163.31,6.123]
[1729461334645,4.58423424,163.33,163.31,6.123]
[1729461334827,1.5,163.34,163.31,6.123]
[1729461335036,4.58423424,163.33,163.31,6.123]
[1729461335348,1.5,163.34,163.31,6.123]
[1729461335645,4.58427097,163.33,163.31,6.123]
[1729461335844,1.5,163.34,163.32,6.1229]
[1729461336154,4.58426901,163.33,163.32,6.1229]
[1729461336444,4.58478127,163.33,163.32,6.1229]
[1729461337845,4.58532861,163.33,163.32,6.1229]
[1729461338865,1.5,163.34,163.32,6.1229]
[1729461339032,4.58605899,163.33,163.32,6.1229]
[1729461340861,6.1232,163.32,163.27,35.3111]
[1729461341150,6.1225,163.33,163.27,15.3111]
[1729461341363,4.5885189,163.32,163.28,6.1243]
[1729461341527,7.6222,163.34,163.28,6.1243]
[1729461341731,4.58845577,163.33,163.28,6.1243]
[1729461341965,4.58845577,163.32,163.29,6.124]
[1729461342256,7.6222,163.34,163.29,6.124]
[1729461342435,11.92774455,163.33,163.29,6.124]
[1729461342633,4.58759406,163.32,163.29,6.124]
[1729461342946,7.6222,163.34,163.29,6.124]
[1729461343139,11.92688303,163.33,163.29,6.124]
[1729461343449,4.5872627,163.32,163.29,6.124]
[1729461343759,4.5872627,163.31,163.29,6.124]
[1729461344062,1.5,163.34,163.29,6.124]
[1729461344234,11.93191735,163.33,163.29,6.124]
[1729461344436,4.58919898,163.32,163.29,6.124]
[1729461344634,4.58919898,163.31,163.29,6.124]
[1729461344853,1.5,163.34,163.29,6.124]
[1729461345165,11.93004829,163.33,163.29,6.124]
[1729461345457,11.93004829,163.32,163.29,6.124]
[1729461345662,4.58848011,163.31,163.3,6.1236]
[1729461345862,1.5,163.34,163.3,6.1236]
[1729461346034,4.58717343,163.31,163.3,6.1236]
[1729461348758,1.5,163.34,163.26,20.0]
[1729461348961,11.92543428,163.33,163.27,6.1248]
[1729461349255,4.58670549,163.32,163.3,6.1233]
[1729461349557,1.5,163.34,163.3,6.1233]
[1729461349765,11.92584612,163.33,163.3,6.1233]
[1729461349937,4.58686389,163.32,163.3,6.1233]
[1729461350266,1.5,163.34,163.3,6.1233]
[1729461350464,11.92628026,163.33,163.3,6.1233]
[1729461350764,4.58703087,163.32,163.3,6.1233]
[1729461350960,1.5,163.34,163.3,6.1233]
[1729461351165,11.92633122,163.33,163.3,6.1233]
[1729461351462,4.58705047,163.32,163.26,50.6259]
[1729461351763,1.5,163.34,163.31,6.1233]
[1729461351969,11.9301145,163.33,163.31,6.1233]
[1729461352159,4.58850558,163.32,163.31,6.1233]
[1729461353052,4.58907892,163.32,163.31,6.1233]
[1729461353245,1.5,163.34,163.28,23.776884]
[1729461353444,1.5,163.34,163.33,6.1225]
[1729461353659,6.08960761,163.34,163.33,6.1225]
[1729461354749,1.5,163.34,163.33,6.1225]
[1729461363788,1.5,163.34,163.33,26.1225]
[1729461365289,1.5,163.34,163.33,49.899384]
[1729461378778,1.5,163.34,163.33,49.999384]
[1729461378975,1.5,163.34,163.33,50.099384]
[1729461380578,0.6277614,163.36,163.35,0.1]
[1729461380784,0.6277614,163.36,163.35,50.098684]
[1729461381398,0.6277614,163.36,163.35,49.998684]
[1729461381585,0.6277614,163.36,163.35,50.098684]
[1729461382474,0.6277614,163.36,163.35,49.998684]
[1729461384484,0.6277614,163.36,163.35,50.098684]
[1729461387172,0.6277614,163.36,163.35,49.998684]
[1729461387370,0.6277614,163.36,163.35,50.098684]
[1729461388602,0.6277614,163.36,163.35,49.998684]
[1729461388908,0.6277614,163.36,163.35,50.098684]
[1729461389072,0.6277614,163.36,163.35,49.998684]
[1729461389691,0.6277614,163.36,163.35,50.098684]
[1729461394680,0.6277614,163.36,163.35,26.1218]
[1729461396404,0.6277614,163.36,163.35,49.898684]
[1729461399796,0.6277614,163.36,163.35,49.998684]
[1729461399996,0.6277614,163.36,163.35,50.098684]
[1729461400487,0.6277614,163.36,163.35,26.1218]
[1729461401827,0.6277614,163.36,163.35,49.898684]
[1729461402924,0.6277614,163.36,163.35,49.998684]
[1729461403093,6.14e-05,163.36,163.35,50.098684]
[1729461403796,6.14e-05,163.36,163.35,49.998684]
[1729461405808,16.4043,163.4,163.39,26.5475386]
[1729461413323,14.02258186,163.5,163.42,20.0]
[1729461413324,15.6784,163.48,163.42,20.0]
[1729461414425,15.6784,163.48,163.45,6.1179]
[1729461417502,15.6784,163.48,163.44,6.1183]
[1729461418513,15.6784,163.48,163.44,15.2956]
[1729461418713,15.6784,163.48,163.45,6.118]
[1729461419111,15.6784,163.48,163.44,15.2956]
[1729461419424,15.6784,163.48,163.46,6.1176]
[1729461420214,15.6784,163.48,163.44,20.0]
[1729461420405,15.6784,163.48,163.47,6.1173]
[1729461426713,15.6784,163.48,163.43,54.370984]
[1729461426714,0.6277614,163.52,163.43,23.776884]
[1729461426937,0.6277614,163.52,163.49,6.1165]
[1729461428138,0.6277614,163.52,163.43,23.976884]
[1729461428338,0.6277614,163.52,163.51,6.1158]
[1729461438443,0.6277614,163.52,163.51,29.892684]
[1729461438746,0.6277614,163.52,163.51,6.1158]
[1729461443627,0.6277614,163.52,163.51,29.892684]
[1729461447329,0.6277614,163.52,163.51,6.1158]
[1729461448753,0.6277614,163.52,163.51,49.892684]
[1729461451759,0.6277614,163.52,163.51,49.992684]
[1729461454052,0.6277614,163.52,163.51,49.892684]
[1729461454259,0.6277614,163.52,163.51,49.992684]
[1729461458457,0.6277614,163.52,163.51,54.24810705]
[1729461462739,0.6277614,163.52,163.51,54.34810705]
[1729461463366,6.14e-05,163.52,163.51,54.34810705]
[1729461463550,6.14e-05,163.52,163.51,54.24810705]
[1729461463749,6.14e-05,163.52,163.51,54.34810705]
[1729461466174,6.14e-05,163.52,163.51,54.24810705]
[1729461466503,6.14e-05,163.52,163.51,54.34810705]
[1729461468570,6.14e-05,163.52,163.51,54.24810705]
[1729461468772,6.14e-05,163.52,163.51,54.34810705]
[1729461472959,6.14e-05,163.52,163.51,54.24810705]
[1729461473162,6.14e-05,163.52,163.51,54.34810705]
[1729461475378,6.14e-05,163.52,163.51,54.24810705]
[1729461475574,6.14e-05,163.52,163.51,54.34810705]
[1729461481894,6.14e-05,163.52,163.51,54.24810705]
[1729461482072,6.14e-05,163.52,163.51,54.34810705]
[1729461483891,16.2387,163.58,163.57,29.890384]
[1729461486901,6.264,163.6,163.57,29.890384]
[1729461487076,6.264,163.6,163.59,29.889684]
[1729461487774,6.264,163.6,163.59,49.889684]
[1729461488098,15.9436,163.62,163.61,29.888884]
[1729461488795,15.9436,163.62,163.61,49.888884]
[1729461489195,6.0159,163.64,163.61,43.776884]
[1729461489392,6.0159,163.64,163.63,29.888184]
[1729461489709,6.0159,163.64,163.63,6.1113]
[1729461489997,6.0159,163.64,163.63,29.888184]
[1729461490197,6.0159,163.64,163.63,6.1113]
[1729461491271,6.0159,163.64,163.63,29.888184]
[1729461510196,0.6277614,163.69,163.62,23.776884]
[1729461510393,0.6277614,163.69,163.68,6.1094]
[1729461510590,0.6277614,163.69,163.68,29.886284]
[1729461510897,0.6277614,163.69,163.68,49.886284]
[1729461511415,0.6277614,163.69,163.68,52.58972262]
[1729461511920,0.1,163.82,163.75,0.1]
[1729461511921,6.37784136,163.82,163.75,0.1]
[1729461512093,16.2994,163.84,163.81,6.1046]
[1729461512295,16.2994,163.84,163.79,6.1053]
[1729461512619,0.6277614,163.85,163.84,6.1035]
[1729461512809,0.38256826,163.86,163.84,6.1035]
[1729461513115,0.38256826,163.86,163.84,21.3619]
[1729461513314,0.38256826,163.86,163.82,20.0]
[1729461513691,0.38256826,163.86,163.83,6.1037]
[1729461513918,0.38256826,163.86,163.84,23.776884]
[1729461514110,0.38256826,163.86,163.84,29.880384]
[1729461514420,0.38256826,163.86,163.84,23.776884]
[1729461514620,0.38256826,163.86,163.83,23.776884]
[1729461515617,15.4835,163.85,163.78,15.2638]
[1729461515913,21.5868,163.85,163.78,15.2638]
[1729461516119,6.1036,163.84,163.78,15.2638]
[1729461516828,21.5868,163.85,163.78,15.2638]
[1729461517494,21.5868,163.85,163.79,23.776884]
[1729461517703,15.4835,163.85,163.79,23.776884]
[1729461518115,6.1035,163.84,163.76,6.1064]
[1729461518916,6.1006,163.84,163.74,15.268]
[1729461519131,6.1048,163.81,163.74,15.268]
[1729461519429,6.105,163.8,163.74,15.268]
[1729461519602,6.1055,163.79,163.71,6.108]
[1729461519804,16.5393,163.82,163.71,6.108]
[1729461520124,6.1057,163.78,163.71,6.108]
[1729461520825,16.6393,163.82,163.72,20.0]
[1729461521023,6.1061,163.77,163.71,20.0]
[1729461521421,16.6393,163.82,163.71,20.0]
[1729461521609,6.1057,163.79,163.71,26.1082]
[1729461521808,16.6393,163.82,163.71,26.1082]
[1729461522106,15.2615,163.81,163.72,23.776884]
[1729461522307,6.1053,163.8,163.72,29.884584]
[1729461522513,6.1054,163.79,163.72,29.884584]
[1729461522917,6.6488,163.78,163.72,29.884584]
[1729461523529,12.7547,163.78,163.72,29.884584]
[1729461523730,6.1061,163.77,163.72,23.776884]
[1729461524032,6.1065,163.76,163.72,23.776884]
[1729461524835,6.6488,163.78,163.72,23.776884]
[1729461525012,6.6488,163.78,163.71,20.0]
[1729461525214,6.1064,163.77,163.71,20.0]
[1729461525634,30.0,163.75,163.71,20.0]
[1729461526024,30.0,163.75,163.7,23.776884]
[1729461526237,30.0,163.75,163.7,29.885584]
[1729461526561,6.85550648,163.76,163.7,29.885584]
[1729461528623,6.1068,163.75,163.71,23.776884]
[1729461529427,0.74870648,163.76,163.71,23.776884]
[1729461529627,6.85520648,163.76,163.71,45.155784]
[1729461529943,16.5662,163.75,163.68,20.0]
[1729461530110,6.1075,163.74,163.68,6.1093]
[1729461530432,16.5662,163.75,163.63,6.2782]
[1729461530433,16.5662,163.75,163.69,6.1087]
[1729461530646,22.6732,163.75,163.69,6.1087]
[1729461530818,6.1072,163.74,163.69,6.1087]
[1729461531437,6.1077,163.73,163.68,15.273]
[1729461531737,5.1077,163.73,163.68,15.273]
[1729461532328,6.1082,163.72,163.66,6.1101]
[1729461532644,6.1082,163.72,163.67,20.0]
[1729461532830,6.1082,163.72,163.66,6.1101]
[1729461533018,6.1082,163.72,163.62,41.1029]
[1729461533019,6.1082,163.72,163.65,20.0]
[1729461533330,6.1082,163.72,163.67,6.1098]
[1729461533531,6.1072,163.74,163.65,21.3867]
[1729461533742,16.5662,163.75,163.66,6.1101]
[1729461534238,6.1072,163.74,163.66,6.1101]
[1729461534443,6.1084,163.71,163.66,6.1101]
[1729461536563,12.7352,163.71,163.66,6.1101]
[1729461537725,12.7352,163.71,163.67,29.886384]
[1729461537726,6.6268,163.71,163.67,29.886384]
[1729461538127,12.7351,163.71,163.66,15.2749]
[1729461539025,12.7351,163.71,163.66,21.385]
[1729461539428,16.5662,163.75,163.67,23.776884]
[1729461539630,22.673,163.75,163.7,6.1086]